[Event "Late-Titled-Tuesday-Blitz-February-13-2024"]
[Site "Chess.com"]
[Date "2024.02.13"]
[Round "6"]
[White "IraZyne"]
[Black "lluiss"]
[Result "1/2-1/2"]
[WhiteElo "2336"]
[BlackElo "2161"]
[TimeControl "180+1"]
[EndTime "15:06:01 PST"]
[Termination "Game drawn by repetition"]

1. e4 {[%clk 0:03:00.9]} 1... e6 {[%clk 0:02:59]} 2. d4 {[%clk 0:02:59.5]} 2...
d5 {[%clk 0:02:59]} 3. exd5 {[%clk 0:02:59.5]} 3... exd5 {[%clk 0:02:59.1]} 4.
Nf3 {[%clk 0:02:59.4]} 4... Bd6 {[%clk 0:02:58.1]} 5. c4 {[%clk 0:02:58.5]} 5...
c6 {[%clk 0:02:57]} 6. Nc3 {[%clk 0:02:58.2]} 6... Ne7 {[%clk 0:02:55.3]} 7. Bg5
{[%clk 0:02:55.7]} 7... f6 {[%clk 0:02:49.7]} 8. Bh4 {[%clk 0:02:55.2]} 8... O-O
{[%clk 0:02:49.7]} 9. Be2 {[%clk 0:02:51.3]} 9... Ng6 {[%clk 0:02:45.7]} 10. Bg3
{[%clk 0:02:50]} 10... Nf4 {[%clk 0:02:42.9]} 11. c5 {[%clk 0:02:48.3]} 11...
Bc7 {[%clk 0:02:32.1]} 12. O-O {[%clk 0:02:47.2]} 12... Nxe2+ {[%clk 0:02:30.6]}
13. Qxe2 {[%clk 0:02:46.8]} 13... Bg4 {[%clk 0:02:26.7]} 14. Bxc7 {[%clk
0:02:44.3]} 14... Qxc7 {[%clk 0:02:26.9]} 15. b4 {[%clk 0:02:43.9]} 15... Nd7
{[%clk 0:02:26.1]} 16. h3 {[%clk 0:02:43.4]} 16... Bh5 {[%clk 0:02:22.9]} 17.
Rfe1 {[%clk 0:02:33.1]} 17... Rfe8 {[%clk 0:02:22.2]} 18. Qd3 {[%clk 0:02:32.9]}
18... Bg6 {[%clk 0:02:20.2]} 19. Qd2 {[%clk 0:02:31.7]} 19... Nf8 {[%clk
0:02:18.1]} 20. a4 {[%clk 0:02:29.9]} 20... Ne6 {[%clk 0:02:17.6]} 21. b5 {[%clk
0:02:29.4]} 21... Nf4 {[%clk 0:02:16.4]} 22. Re3 {[%clk 0:02:21.7]} 22... Rxe3
{[%clk 0:02:13.3]} 23. fxe3 {[%clk 0:02:21.4]} 23... Nh5 {[%clk 0:02:08.3]} 24.
a5 {[%clk 0:02:18.1]} 24... a6 {[%clk 0:01:51.2]} 25. b6 {[%clk 0:02:11.6]}
25... Qe7 {[%clk 0:01:44.9]} 26. Qf2 {[%clk 0:02:10.2]} 26... Re8 {[%clk
0:01:43.1]} 27. Re1 {[%clk 0:02:09.7]} 27... Be4 {[%clk 0:01:38.4]} 28. g4
{[%clk 0:02:05.8]} 28... Qf7 {[%clk 0:01:15]} 29. Nxe4 {[%clk 0:02:03.4]} 29...
Rxe4 {[%clk 0:01:02.8]} 30. Nd2 {[%clk 0:01:59.5]} 30... Re8 {[%clk 0:00:49.6]}
31. gxh5 {[%clk 0:01:58.5]} 31... Qxh5 {[%clk 0:00:49.7]} 32. Qf3 {[%clk
0:01:58.6]} 32... Qg5+ {[%clk 0:00:48.8]} 33. Kh1 {[%clk 0:01:56.2]} 33... Qg6
{[%clk 0:00:47.6]} 34. e4 {[%clk 0:01:51]} 34... Qh6 {[%clk 0:00:42.7]} 35. Re2
{[%clk 0:01:50.3]} 35... dxe4 {[%clk 0:00:39.7]} 36. Nxe4 {[%clk 0:01:46.3]}
36... Qc1+ {[%clk 0:00:38.3]} 37. Kh2 {[%clk 0:01:45.4]} 37... Kh8 {[%clk
0:00:19.2]} 38. Nd6 {[%clk 0:01:43.3]} 38... Rxe2+ {[%clk 0:00:17]} 39. Qxe2
{[%clk 0:01:43.1]} 39... Qf4+ {[%clk 0:00:16.8]} 40. Kg2 {[%clk 0:01:42]} 40...
h6 {[%clk 0:00:08.1]} 41. Nxb7 {[%clk 0:01:34.1]} 41... Qg5+ {[%clk 0:00:07.5]}
42. Kh2 {[%clk 0:01:27]} 42... Qf4+ {[%clk 0:00:07.3]} 43. Kg2 {[%clk
0:01:27.1]} 43... Qg5+ {[%clk 0:00:07]} 44. Kf2 {[%clk 0:01:25.4]} 44... Qf4+
{[%clk 0:00:07.1]} 45. Kg2 {[%clk 0:01:25.5]} 1/2-1/2

[Event "Late-Titled-Tuesday-Blitz-February-13-2024"]
[Site "Chess.com"]
[Date "2024.02.13"]
[Round "6"]
[White "Beca95"]
[Black "Sl4werThanYou"]
[Result "0-1"]
[WhiteElo "2883"]
[BlackElo "2678"]
[TimeControl "180+1"]
[EndTime "15:06:09 PST"]
[Termination "Sl4werThanYou won by resignation"]

1. Nf3 {[%clk 0:03:00.9]} 1... Nf6 {[%clk 0:02:57.4]} 2. c4 {[%clk 0:03:00.3]}
2... c5 {[%clk 0:02:54.2]} 3. Nc3 {[%clk 0:03:00.1]} 3... Nc6 {[%clk 0:02:54.3]}
4. d4 {[%clk 0:02:59.8]} 4... cxd4 {[%clk 0:02:53.9]} 5. Nxd4 {[%clk 0:03:00.7]}
5... e6 {[%clk 0:02:54]} 6. g3 {[%clk 0:03:01.1]} 6... Qb6 {[%clk 0:02:48.9]} 7.
Ndb5 {[%clk 0:02:57.7]} 7... Ne5 {[%clk 0:02:46.2]} 8. Bf4 {[%clk 0:02:56.9]}
8... Bc5 {[%clk 0:02:16.2]} 9. e3 {[%clk 0:02:46.1]} 9... d6 {[%clk 0:02:13.4]}
10. a3 {[%clk 0:02:44.8]} 10... Qc6 {[%clk 0:02:09.1]} 11. b4 {[%clk 0:02:33.2]}
11... O-O {[%clk 0:01:48.9]} 12. bxc5 {[%clk 0:02:19]} 12... Qxh1 {[%clk
0:01:47.2]} 13. Qxd6 {[%clk 0:01:00.3]} 13... Nf3+ {[%clk 0:01:33]} 14. Ke2
{[%clk 0:01:00.4]} 14... e5 {[%clk 0:01:31.8]} 15. Bxe5 {[%clk 0:01:00.4]} 15...
Nxe5 {[%clk 0:01:18.8]} 16. Qxe5 {[%clk 0:01:00.4]} 16... Bg4+ {[%clk
0:01:18.4]} 17. Kd2 {[%clk 0:01:00.8]} 17... Qxh2 {[%clk 0:01:14]} 18. Qf4
{[%clk 0:01:00.2]} 18... Rad8+ {[%clk 0:01:08.2]} 19. Nd4 {[%clk 0:00:59.2]}
19... Qh5 {[%clk 0:00:59.5]} 20. Bd3 {[%clk 0:00:46.6]} 20... h6 {[%clk
0:00:49.1]} 21. Qc7 {[%clk 0:00:36.6]} 21... Qg5 {[%clk 0:00:36.3]} 22. Rh1
{[%clk 0:00:33.4]} 22... Rxd4 {[%clk 0:00:26.8]} 23. f4 {[%clk 0:00:33.4]} 23...
Rxd3+ {[%clk 0:00:25.9]} 24. Kxd3 {[%clk 0:00:34.3]} 24... Qg6+ {[%clk
0:00:25.4]} 25. e4 {[%clk 0:00:31.1]} 25... Bf3 {[%clk 0:00:23.7]} 26. f5 {[%clk
0:00:31.6]} 26... Qg4 {[%clk 0:00:20.5]} 27. Qf4 {[%clk 0:00:30.5]} 27... Qxf4
{[%clk 0:00:20.4]} 28. gxf4 {[%clk 0:00:30.7]} 28... Bxh1 {[%clk 0:00:20.7]} 0-1

[Event "Late-Titled-Tuesday-Blitz-February-13-2024"]
[Site "Chess.com"]
[Date "2024.02.13"]
[Round "6"]
[White "ChristopherYoo"]
[Black "LyonBeast"]
[Result "0-1"]
[WhiteElo "2973"]
[BlackElo "3185"]
[TimeControl "180+1"]
[EndTime "15:06:13 PST"]
[Termination "LyonBeast won on time"]

1. e4 {[%clk 0:03:00.9]} 1... c6 {[%clk 0:02:59.9]} 2. d3 {[%clk 0:02:57.8]}
2... d5 {[%clk 0:02:59.7]} 3. Nf3 {[%clk 0:02:57.3]} 3... dxe4 {[%clk
0:02:59.4]} 4. dxe4 {[%clk 0:02:58.2]} 4... Qxd1+ {[%clk 0:02:59.6]} 5. Kxd1
{[%clk 0:02:55]} 5... g6 {[%clk 0:02:59.9]} 6. Nbd2 {[%clk 0:02:50.2]} 6... Bg7
{[%clk 0:02:58.9]} 7. c3 {[%clk 0:02:47.5]} 7... f5 {[%clk 0:02:53.7]} 8. Kc2
{[%clk 0:02:32]} 8... Nf6 {[%clk 0:02:51.8]} 9. Bd3 {[%clk 0:02:31.9]} 9... Na6
{[%clk 0:02:38.3]} 10. exf5 {[%clk 0:02:02.5]} 10... gxf5 {[%clk 0:02:33.6]} 11.
Bxa6 {[%clk 0:01:39.5]} 11... bxa6 {[%clk 0:02:33.1]} 12. Re1 {[%clk 0:01:40]}
12... Nd5 {[%clk 0:02:21.5]} 13. Nc4 {[%clk 0:01:27.3]} 13... O-O {[%clk
0:02:19]} 14. Nce5 {[%clk 0:01:10.2]} 14... f4 {[%clk 0:02:17.4]} 15. Nxc6
{[%clk 0:00:59.7]} 15... Bf5+ {[%clk 0:02:16.8]} 16. Kd1 {[%clk 0:00:52.5]}
16... e6 {[%clk 0:01:42.4]} 17. Nfd4 {[%clk 0:00:45.1]} 17... Rae8 {[%clk
0:01:26.2]} 18. Nxf5 {[%clk 0:00:36.9]} 18... Rxf5 {[%clk 0:01:27.1]} 19. Re4
{[%clk 0:00:18.7]} 19... e5 {[%clk 0:01:21.2]} 20. Bd2 {[%clk 0:00:08.9]} 20...
Rc8 {[%clk 0:01:05]} 21. Rc4 {[%clk 0:00:03.7]} 21... Rc7 {[%clk 0:00:55.7]} 22.
Na5 {[%clk 0:00:03.7]} 22... Rd7 {[%clk 0:00:55.3]} 23. Ke2 {[%clk 0:00:03.3]}
23... Rg5 {[%clk 0:00:46.6]} 24. g3 {[%clk 0:00:03.3]} 24... Rh5 {[%clk
0:00:47]} 25. h4 {[%clk 0:00:03.1]} 25... f3+ {[%clk 0:00:45.8]} 26. Kxf3 {[%clk
0:00:02.1]} 26... Nb6 {[%clk 0:00:46.2]} 27. Rg4 {[%clk 0:00:01.5]} 27... Rxd2
{[%clk 0:00:44.8]} 28. c4 {[%clk 0:00:01.7]} 28... e4+ {[%clk 0:00:45]} 29. Rxe4
{[%clk 0:00:01.3]} 29... Rxa5 {[%clk 0:00:45.9]} 0-1

[Event "Late-Titled-Tuesday-Blitz-February-13-2024"]
[Site "Chess.com"]
[Date "2024.02.13"]
[Round "6"]
[White "mightysmasher"]
[Black "Smiechu"]
[Result "1-0"]
[WhiteElo "2554"]
[BlackElo "2426"]
[TimeControl "180+1"]
[EndTime "15:06:15 PST"]
[Termination "mightysmasher won by resignation"]

1. e4 {[%clk 0:03:00.9]} 1... c5 {[%clk 0:02:59.5]} 2. c3 {[%clk 0:03:00.9]}
2... g6 {[%clk 0:02:59.6]} 3. d4 {[%clk 0:03:01]} 3... cxd4 {[%clk 0:02:59.9]}
4. cxd4 {[%clk 0:03:01]} 4... d5 {[%clk 0:03:00.4]} 5. exd5 {[%clk 0:03:01.2]}
5... Nf6 {[%clk 0:03:00.1]} 6. Bb5+ {[%clk 0:03:00.2]} 6... Nbd7 {[%clk
0:02:59.5]} 7. Nc3 {[%clk 0:02:59.8]} 7... Bg7 {[%clk 0:02:59.5]} 8. Nf3 {[%clk
0:02:59.6]} 8... O-O {[%clk 0:02:59.1]} 9. O-O {[%clk 0:02:59.7]} 9... Nb6
{[%clk 0:02:58.6]} 10. Re1 {[%clk 0:02:59.2]} 10... Nbxd5 {[%clk 0:02:57.5]} 11.
Bc4 {[%clk 0:02:58.8]} 11... Nb6 {[%clk 0:02:30.4]} 12. Bb3 {[%clk 0:02:56.4]}
12... e6 {[%clk 0:02:29.4]} 13. Bg5 {[%clk 0:02:53.4]} 13... Qd6 {[%clk
0:02:24.5]} 14. Bxf6 {[%clk 0:02:46.2]} 14... Bxf6 {[%clk 0:02:24.2]} 15. Ne4
{[%clk 0:02:46.6]} 15... Qd8 {[%clk 0:02:22]} 16. Nxf6+ {[%clk 0:02:46.2]} 16...
Qxf6 {[%clk 0:02:21.9]} 17. Rc1 {[%clk 0:02:46.3]} 17... Bd7 {[%clk 0:02:15.4]}
18. Ne5 {[%clk 0:02:44.1]} 18... Rfd8 {[%clk 0:02:09.9]} 19. Rc7 {[%clk
0:02:40.2]} 19... Rab8 {[%clk 0:01:37.5]} 20. Ng4 {[%clk 0:02:18.4]} 20... Qf4
{[%clk 0:01:29.6]} 21. Ne5 {[%clk 0:02:11.8]} 21... Be8 {[%clk 0:01:28.1]} 22.
Qe2 {[%clk 0:01:58.6]} 22... Rxd4 {[%clk 0:01:12.5]} 23. g3 {[%clk 0:01:42.2]}
23... Qd2 {[%clk 0:01:02.1]} 24. Qxd2 {[%clk 0:01:28.4]} 24... Rxd2 {[%clk
0:01:02]} 25. Ng4 {[%clk 0:01:28.9]} 25... Rxb2 {[%clk 0:00:34.9]} 26. Nf6+
{[%clk 0:01:27.7]} 26... Kg7 {[%clk 0:00:35.2]} 27. Nxe8+ {[%clk 0:01:25.2]}
27... Rxe8 {[%clk 0:00:35.3]} 28. Rxb7 {[%clk 0:01:25.1]} 28... Nc4 {[%clk
0:00:28.4]} 29. Rxa7 {[%clk 0:01:23.7]} 29... Nd2 {[%clk 0:00:28.6]} 30. Rxe6
{[%clk 0:01:13.3]} 30... Rc8 {[%clk 0:00:10.6]} 31. Ree7 {[%clk 0:01:06.4]}
31... Nf3+ {[%clk 0:00:05.4]} 32. Kg2 {[%clk 0:01:02.5]} 32... Ng5 {[%clk
0:00:04.9]} 33. h4 {[%clk 0:01:02.2]} 33... Rxb3 {[%clk 0:00:02.7]} 34. axb3
{[%clk 0:01:01.2]} 34... Ne6 {[%clk 0:00:02.8]} 35. Rxe6 {[%clk 0:01:00.9]} 1-0

[Event "Late-Titled-Tuesday-Blitz-February-13-2024"]
[Site "Chess.com"]
[Date "2024.02.13"]
[Round "6"]
[White "Doublekk14"]
[Black "RantomOpening"]
[Result "0-1"]
[WhiteElo "2325"]
[BlackElo "2520"]
[TimeControl "180+1"]
[EndTime "15:06:22 PST"]
[Termination "RantomOpening won on time"]

1. c4 {[%clk 0:03:00.9]} 1... e6 {[%clk 0:02:59.9]} 2. e4 {[%clk 0:03:00.4]}
2... c6 {[%clk 0:02:56.2]} 3. d4 {[%clk 0:02:57.1]} 3... d5 {[%clk 0:02:56.5]}
4. exd5 {[%clk 0:02:57.2]} 4... cxd5 {[%clk 0:02:55.8]} 5. Nc3 {[%clk
0:02:58.1]} 5... Nf6 {[%clk 0:02:55.6]} 6. Nf3 {[%clk 0:02:58.1]} 6... Be7
{[%clk 0:02:55.1]} 7. Be2 {[%clk 0:02:58.3]} 7... dxc4 {[%clk 0:02:55]} 8. Bxc4
{[%clk 0:02:58.1]} 8... O-O {[%clk 0:02:55.4]} 9. O-O {[%clk 0:02:58.4]} 9... b6
{[%clk 0:02:55.9]} 10. Ne5 {[%clk 0:02:57.6]} 10... Bb7 {[%clk 0:02:55.8]} 11.
Be3 {[%clk 0:02:55.9]} 11... Nc6 {[%clk 0:02:55.9]} 12. Bb5 {[%clk 0:02:48.7]}
12... Nxe5 {[%clk 0:02:50.9]} 13. dxe5 {[%clk 0:02:48.5]} 13... Nd5 {[%clk
0:02:51.3]} 14. Nxd5 {[%clk 0:02:46.1]} 14... Qxd5 {[%clk 0:02:51]} 15. Qxd5
{[%clk 0:02:45.9]} 15... Bxd5 {[%clk 0:02:51.9]} 16. Ba6 {[%clk 0:02:35.8]}
16... Rab8 {[%clk 0:02:40.2]} 17. b3 {[%clk 0:02:34.8]} 17... Bb7 {[%clk
0:02:40.1]} 18. Bxb7 {[%clk 0:02:28]} 18... Rxb7 {[%clk 0:02:41]} 19. Rfd1
{[%clk 0:02:28]} 19... Rc7 {[%clk 0:02:40.9]} 20. Rac1 {[%clk 0:02:27.3]} 20...
Rfc8 {[%clk 0:02:40.7]} 21. Kf1 {[%clk 0:02:22.2]} 21... Kf8 {[%clk 0:02:38.9]}
22. Ke2 {[%clk 0:02:20]} 22... Ke8 {[%clk 0:02:38.8]} 23. Rxc7 {[%clk
0:02:18.6]} 23... Rxc7 {[%clk 0:02:38.7]} 24. Rc1 {[%clk 0:02:18.8]} 24... Rxc1
{[%clk 0:02:38]} 25. Bxc1 {[%clk 0:02:18.7]} 25... Kd7 {[%clk 0:02:38.9]} 26.
Kd3 {[%clk 0:02:17.5]} 26... Kc6 {[%clk 0:02:39.8]} 27. Ke4 {[%clk 0:02:17.5]}
27... Bc5 {[%clk 0:02:34.3]} 28. f4 {[%clk 0:02:17]} 28... Kb5 {[%clk
0:02:29.8]} 29. g4 {[%clk 0:02:14.4]} 29... Kb4 {[%clk 0:02:29.1]} 30. Bb2
{[%clk 0:02:14.3]} 30... a5 {[%clk 0:02:27.4]} 31. f5 {[%clk 0:02:14.2]} 31...
a4 {[%clk 0:02:26.1]} 32. bxa4 {[%clk 0:02:11.3]} 32... Kxa4 {[%clk 0:02:27]}
33. h4 {[%clk 0:02:09.9]} 33... Be7 {[%clk 0:02:20.6]} 34. g5 {[%clk 0:02:06.7]}
34... g6 {[%clk 0:02:15.3]} 35. f6 {[%clk 0:01:20]} 35... Bb4 {[%clk 0:02:14.2]}
36. Bd4 {[%clk 0:01:10.4]} 36... b5 {[%clk 0:02:08.6]} 37. Bb2 {[%clk
0:00:50.4]} 37... Be1 {[%clk 0:01:55.2]} 38. Kd4 {[%clk 0:00:49.9]} 38... Bf2+
{[%clk 0:01:49]} 39. Ke4 {[%clk 0:00:28.9]} 39... Bxh4 {[%clk 0:01:45.6]} 40.
Kf3 {[%clk 0:00:26.9]} 40... Bxg5 {[%clk 0:01:44.6]} 41. Ke4 {[%clk 0:00:24]}
41... h5 {[%clk 0:01:44.2]} 42. Kd4 {[%clk 0:00:24]} 42... h4 {[%clk 0:01:44.3]}
43. Kc5 {[%clk 0:00:24.1]} 43... h3 {[%clk 0:01:43.9]} 44. Kd6 {[%clk
0:00:22.6]} 44... h2 {[%clk 0:01:44.2]} 45. Ke7 {[%clk 0:00:22.8]} 45... h1=Q
{[%clk 0:01:44.1]} 46. Kxf7 {[%clk 0:00:22.9]} 46... Bf4 {[%clk 0:01:38.3]} 47.
Kg7 {[%clk 0:00:16.9]} 47... Qb7+ {[%clk 0:01:32.9]} 48. f7 {[%clk 0:00:15.7]}
48... Bh6+ {[%clk 0:01:32.4]} 49. Kxg6 {[%clk 0:00:11.3]} 49... Qe7 {[%clk
0:01:32.5]} 50. Bd4 {[%clk 0:00:08.7]} 50... Qg5+ {[%clk 0:01:32.4]} 0-1

[Event "Late-Titled-Tuesday-Blitz-February-13-2024"]
[Site "Chess.com"]
[Date "2024.02.13"]
[Round "6"]
[White "GaiozNigalidze"]
[Black "trriinu"]
[Result "1-0"]
[WhiteElo "2655"]
[BlackElo "2249"]
[TimeControl "180+1"]
[EndTime "15:06:28 PST"]
[Termination "GaiozNigalidze won by resignation"]

1. e4 {[%clk 0:03:00.9]} 1... d5 {[%clk 0:02:59.7]} 2. e5 {[%clk 0:03:00]} 2...
c5 {[%clk 0:02:58.5]} 3. Nf3 {[%clk 0:03:00]} 3... Nc6 {[%clk 0:02:58.6]} 4. Bb5
{[%clk 0:02:59.7]} 4... Bg4 {[%clk 0:02:53.3]} 5. h3 {[%clk 0:02:56]} 5... Bh5
{[%clk 0:02:53.3]} 6. d4 {[%clk 0:02:51.9]} 6... e6 {[%clk 0:02:45.8]} 7. c3
{[%clk 0:02:47.7]} 7... cxd4 {[%clk 0:02:27.2]} 8. cxd4 {[%clk 0:02:45.6]} 8...
Bb4+ {[%clk 0:02:15]} 9. Nc3 {[%clk 0:02:35.7]} 9... Ne7 {[%clk 0:02:14.5]} 10.
O-O {[%clk 0:02:30.3]} 10... O-O {[%clk 0:02:14.5]} 11. g4 {[%clk 0:02:26.9]}
11... Bg6 {[%clk 0:02:13.9]} 12. Bg5 {[%clk 0:02:25.1]} 12... Qa5 {[%clk
0:02:01.8]} 13. a4 {[%clk 0:01:50.3]} 13... a6 {[%clk 0:01:45.9]} 14. Be2 {[%clk
0:01:43.2]} 14... Bxc3 {[%clk 0:01:39.2]} 15. bxc3 {[%clk 0:01:44.1]} 15... Qxc3
{[%clk 0:01:39.1]} 16. Bd2 {[%clk 0:01:37.1]} 16... Qb2 {[%clk 0:01:34.2]} 17.
Be3 {[%clk 0:01:26]} 17... Nb4 {[%clk 0:01:16.3]} 18. Rc1 {[%clk 0:01:21.1]}
18... Nec6 {[%clk 0:01:03.3]} 19. Qd2 {[%clk 0:01:18.7]} 19... Qa3 {[%clk
0:00:27.9]} 20. Ra1 {[%clk 0:01:14.8]} 20... Qb3 {[%clk 0:00:23.1]} 21. Rfc1
{[%clk 0:01:11.6]} 21... Nc2 {[%clk 0:00:13.3]} 22. Rab1 {[%clk 0:01:08.8]}
22... Qxa4 {[%clk 0:00:12]} 23. Bd1 {[%clk 0:01:09]} 23... N6b4 {[%clk
0:00:10.5]} 24. Nh4 {[%clk 0:01:05.4]} 24... Rac8 {[%clk 0:00:04.5]} 25. Nxg6
{[%clk 0:01:00.6]} 25... hxg6 {[%clk 0:00:05.4]} 26. Rxb4 {[%clk 0:00:51.3]}
26... Qxb4 {[%clk 0:00:05.2]} 27. Rxc2 {[%clk 0:00:51.2]} 27... Qb1 {[%clk
0:00:04]} 28. Rb2 {[%clk 0:00:48.9]} 28... Qe4 {[%clk 0:00:03.4]} 29. Rxb7
{[%clk 0:00:45]} 29... a5 {[%clk 0:00:02.3]} 30. f3 {[%clk 0:00:41.9]} 30...
Qxe3+ {[%clk 0:00:01.5]} 31. Qxe3 {[%clk 0:00:41.6]} 1-0

[Event "Late-Titled-Tuesday-Blitz-February-13-2024"]
[Site "Chess.com"]
[Date "2024.02.13"]
[Round "6"]
[White "LLRChess"]
[Black "VladimirBugayev"]
[Result "1/2-1/2"]
[WhiteElo "2575"]
[BlackElo "2401"]
[TimeControl "180+1"]
[EndTime "15:06:29 PST"]
[Termination "Game drawn by repetition"]

1. e4 {[%clk 0:03:00.9]} 1... c6 {[%clk 0:02:59.6]} 2. d4 {[%clk 0:03:00.5]}
2... d5 {[%clk 0:03:00.3]} 3. exd5 {[%clk 0:03:01.1]} 3... cxd5 {[%clk
0:03:00.4]} 4. Bd3 {[%clk 0:03:01.6]} 4... Nc6 {[%clk 0:03:00.1]} 5. c3 {[%clk
0:03:02.1]} 5... Nf6 {[%clk 0:03:00.1]} 6. h3 {[%clk 0:02:59.5]} 6... e5 {[%clk
0:02:59.3]} 7. dxe5 {[%clk 0:02:58.6]} 7... Nxe5 {[%clk 0:02:59.3]} 8. Nf3
{[%clk 0:02:59.2]} 8... Nxd3+ {[%clk 0:02:56.3]} 9. Qxd3 {[%clk 0:03:00.1]} 9...
Bd6 {[%clk 0:02:51.1]} 10. Bg5 {[%clk 0:02:59.8]} 10... O-O {[%clk 0:02:50.9]}
11. Nbd2 {[%clk 0:02:57.8]} 11... Re8+ {[%clk 0:02:45.3]} 12. Kf1 {[%clk
0:02:58.1]} 12... Be6 {[%clk 0:02:35.9]} 13. g3 {[%clk 0:02:53.3]} 13... h6
{[%clk 0:02:35]} 14. Bxf6 {[%clk 0:02:48.2]} 14... Qxf6 {[%clk 0:02:35.9]} 15.
Kg2 {[%clk 0:02:48.3]} 15... Rad8 {[%clk 0:02:27.2]} 16. Nd4 {[%clk 0:02:46.4]}
16... Bd7 {[%clk 0:02:21]} 17. Rhe1 {[%clk 0:02:43.3]} 17... Bc6 {[%clk
0:02:16.7]} 18. N2f3 {[%clk 0:02:33.5]} 18... Bc7 {[%clk 0:02:04.9]} 19. Re2
{[%clk 0:02:18.8]} 19... Rxe2 {[%clk 0:01:57.3]} 20. Qxe2 {[%clk 0:02:18.9]}
20... Re8 {[%clk 0:01:57.4]} 21. Qd2 {[%clk 0:02:15.3]} 21... Bb6 {[%clk
0:01:48.3]} 22. Re1 {[%clk 0:02:13.9]} 22... Re4 {[%clk 0:01:45.4]} 23. Nxc6
{[%clk 0:02:08.2]} 23... Qxc6 {[%clk 0:01:44.7]} 24. Kh2 {[%clk 0:01:40.4]}
24... Rxe1 {[%clk 0:01:42.3]} 25. Qxe1 {[%clk 0:01:29.2]} 25... Qe6 {[%clk
0:01:37.1]} 26. Qxe6 {[%clk 0:01:16.5]} 26... fxe6 {[%clk 0:01:38]} 27. Kg2
{[%clk 0:01:16.9]} 27... Kf7 {[%clk 0:01:35.7]} 28. Ne5+ {[%clk 0:01:15.8]}
28... Ke7 {[%clk 0:01:33.4]} 29. f4 {[%clk 0:01:08.1]} 29... Bc7 {[%clk
0:01:26.6]} 30. Nd3 {[%clk 0:01:06.1]} 30... Bd6 {[%clk 0:01:25.9]} 31. Kf3
{[%clk 0:01:05.6]} 31... Kf6 {[%clk 0:01:25.5]} 32. g4 {[%clk 0:01:03.6]} 32...
g5 {[%clk 0:01:24.3]} 33. Ke3 {[%clk 0:00:56.2]} 33... b5 {[%clk 0:01:06.4]} 34.
Kf3 {[%clk 0:00:47.8]} 34... gxf4 {[%clk 0:00:53.8]} 35. Nxf4 {[%clk 0:00:47.3]}
35... Bxf4 {[%clk 0:00:54.5]} 36. Kxf4 {[%clk 0:00:47.4]} 36... e5+ {[%clk
0:00:55.4]} 37. Kg3 {[%clk 0:00:40.5]} 37... a5 {[%clk 0:00:55.1]} 38. a3 {[%clk
0:00:32.5]} 38... a4 {[%clk 0:00:52.8]} 39. h4 {[%clk 0:00:32.4]} 39... Kg6
{[%clk 0:00:47.6]} 40. Kf3 {[%clk 0:00:32.4]} 40... Kf6 {[%clk 0:00:44.2]} 41.
Ke3 {[%clk 0:00:32.7]} 41... Ke6 {[%clk 0:00:39.1]} 42. Kf3 {[%clk 0:00:30.1]}
42... Kf6 {[%clk 0:00:39.3]} 43. Ke3 {[%clk 0:00:30.2]} 43... Ke6 {[%clk
0:00:39]} 44. Kf3 {[%clk 0:00:30.7]} 44... Kf6 {[%clk 0:00:37.3]} 1/2-1/2

[Event "Late-Titled-Tuesday-Blitz-February-13-2024"]
[Site "Chess.com"]
[Date "2024.02.13"]
[Round "6"]
[White "temus_galaktionov"]
[Black "aghasiyevkamal"]
[Result "1-0"]
[WhiteElo "2906"]
[BlackElo "2665"]
[TimeControl "180+1"]
[EndTime "15:06:35 PST"]
[Termination "temus_galaktionov won by resignation"]

1. d4 {[%clk 0:03:00.9]} 1... d5 {[%clk 0:02:59.4]} 2. Nf3 {[%clk 0:03:00.7]}
2... Nf6 {[%clk 0:02:59.1]} 3. c4 {[%clk 0:03:01.2]} 3... e6 {[%clk 0:02:59.2]}
4. Nc3 {[%clk 0:02:58.8]} 4... Be7 {[%clk 0:02:58.8]} 5. Bf4 {[%clk 0:02:58.3]}
5... O-O {[%clk 0:02:58.8]} 6. e3 {[%clk 0:02:58.4]} 6... b6 {[%clk 0:02:59.2]}
7. Bd3 {[%clk 0:02:56.6]} 7... dxc4 {[%clk 0:02:59.1]} 8. Bxc4 {[%clk
0:02:57.5]} 8... Ba6 {[%clk 0:02:59.2]} 9. Bxa6 {[%clk 0:02:57.4]} 9... Nxa6
{[%clk 0:02:59.6]} 10. O-O {[%clk 0:02:57.2]} 10... Qc8 {[%clk 0:02:58.4]} 11.
Qe2 {[%clk 0:02:57.7]} 11... c5 {[%clk 0:02:54.4]} 12. Rac1 {[%clk 0:02:57.5]}
12... Qb7 {[%clk 0:02:54.4]} 13. a3 {[%clk 0:02:54.5]} 13... Rac8 {[%clk
0:02:47.1]} 14. h3 {[%clk 0:02:52.9]} 14... h6 {[%clk 0:02:40.7]} 15. Nb5 {[%clk
0:02:43.3]} 15... Rfd8 {[%clk 0:02:34.4]} 16. Rc2 {[%clk 0:02:42.2]} 16... cxd4
{[%clk 0:02:33.3]} 17. Nfxd4 {[%clk 0:02:41.5]} 17... Rxc2 {[%clk 0:02:22.5]}
18. Qxc2 {[%clk 0:02:42.4]} 18... Rc8 {[%clk 0:02:22.4]} 19. Qa4 {[%clk
0:02:41.4]} 19... Nd5 {[%clk 0:02:13]} 20. Be5 {[%clk 0:02:38.1]} 20... Bf8
{[%clk 0:01:18.1]} 21. Rd1 {[%clk 0:02:34.4]} 21... Be7 {[%clk 0:01:01.8]} 22.
b4 {[%clk 0:01:59.7]} 22... Bf8 {[%clk 0:00:49.7]} 23. e4 {[%clk 0:01:41]} 23...
Nf6 {[%clk 0:00:33.8]} 24. f3 {[%clk 0:01:38.4]} 24... Rd8 {[%clk 0:00:28.9]}
25. Qc2 {[%clk 0:01:28.4]} 25... Rc8 {[%clk 0:00:25.1]} 26. Qa4 {[%clk
0:01:21.7]} 26... Rd8 {[%clk 0:00:24.8]} 27. Rc1 {[%clk 0:01:21.6]} 27... Nd7
{[%clk 0:00:19.2]} 28. Bg3 {[%clk 0:01:17]} 28... Rc8 {[%clk 0:00:15]} 29. Rc2
{[%clk 0:01:15.8]} 29... Rxc2 {[%clk 0:00:14.6]} 30. Qxc2 {[%clk 0:01:16.7]}
30... Nab8 {[%clk 0:00:13.4]} 31. Qc7 {[%clk 0:01:01.1]} 31... Qxc7 {[%clk
0:00:11.9]} 32. Bxc7 {[%clk 0:01:00.3]} 32... a6 {[%clk 0:00:12.4]} 33. Nd6
{[%clk 0:00:58.1]} 33... Bxd6 {[%clk 0:00:11.9]} 34. Bxd6 {[%clk 0:00:59]} 34...
b5 {[%clk 0:00:11.5]} 35. e5 {[%clk 0:00:58.1]} 35... f6 {[%clk 0:00:11.6]} 36.
f4 {[%clk 0:00:57.2]} 36... Kf7 {[%clk 0:00:11.7]} 37. Kf2 {[%clk 0:00:56.9]}
37... fxe5 {[%clk 0:00:11.7]} 38. fxe5 {[%clk 0:00:57.6]} 38... g5 {[%clk
0:00:11.2]} 39. Kf3 {[%clk 0:00:56]} 39... Kg6 {[%clk 0:00:11.7]} 40. Nxe6
{[%clk 0:00:50.8]} 40... Kf5 {[%clk 0:00:10]} 41. Nd4+ {[%clk 0:00:50.5]} 41...
Kg6 {[%clk 0:00:10.3]} 42. e6 {[%clk 0:00:50.3]} 42... Nf6 {[%clk 0:00:10.5]}
43. Bxb8 {[%clk 0:00:50.1]} 1-0